bitfinex/quotes_SOLUSD_20260115
["timestamp","ask_amount","ask_price","bid_price","bid_amount"]
[1768464168288,5.14981532,144.85,144.83,0.70064987]
[1768464168488,6.90321689,144.86,144.83,4.70019311]
[1768464168689,5.15009656,144.85,144.83,4.70019311]
[1768464168916,6.90321689,144.86,144.83,4.70019311]
[1768464169100,5.15008706,144.85,144.83,4.70019311]
[1768464169395,6.90321689,144.86,144.83,4.70019311]
[1768464169591,5.15010073,144.85,144.83,4.70019311]
[1768464169912,6.90321689,144.86,144.83,4.70019311]
[1768464170116,5.15009952,144.85,144.83,4.70019311]
[1768464170415,6.90321689,144.86,144.83,4.70019311]
[1768464170791,5.1500223,144.85,144.83,4.70019311]
[1768464170991,6.90321689,144.86,144.83,4.70019311]
[1768464171822,0.66171312,144.85,144.82,4.71506837]
[1768464172918,0.66171312,144.85,144.82,3.99954324]
[1768464173217,7.56582547,144.85,144.82,3.99954324]
[1768464173419,7.56582547,144.85,144.82,2.56137625]
[1768464173916,0.58620208,144.84,144.81,0.71552513]
[1768464174418,0.58620208,144.84,144.81,3.27690138]
[1768464177727,5.15781704,144.83,144.81,3.27690138]
[1768464177897,0.58620208,144.84,144.81,3.27690138]
[1768464178208,7.56812824,144.85,144.82,3.27690138]
[1768464178417,5.16010227,144.84,144.82,3.27690138]
[1768464178628,7.56812824,144.85,144.82,3.27690138]
[1768464178926,5.16009829,144.84,144.82,3.27690138]
[1768464179100,7.56812824,144.85,144.82,3.27690138]
[1768464179303,5.16009708,144.84,144.83,2.56137625]
[1768464179502,5.16009708,144.84,144.83,3.27690138]
[1768464179925,5.16009708,144.84,144.83,2.56137625]
[1768464181121,5.16009708,144.84,144.82,0.71552513]
[1768464181122,12.06443481,144.84,144.82,2.56137625]
[1768464181319,5.16009708,144.83,144.82,2.56137625]
[1768464182308,5.16009708,144.83,144.81,3.27690138]
[1768464182708,5.16009708,144.83,144.81,0.71552513]
[1768464182911,5.16009708,144.83,144.81,3.27690138]
[1768464183902,0.58471527,144.84,144.82,2.56137625]
[1768464186027,7.48888942,144.84,144.82,2.56137625]
[1768464186219,7.48888942,144.84,144.81,3.27690138]
[1768464186413,0.58471527,144.84,144.81,3.27690138]
[1768464187941,0.58471527,144.84,144.82,2.56137625]
[1768464188441,0.58471527,144.84,144.81,0.71552513]
[1768464188750,7.56790203,144.85,144.82,3.27690138]
[1768464191132,0.66401589,144.85,144.82,3.27690138]
[1768464191331,7.56772604,144.85,144.82,3.27690138]
[1768464191544,7.56736532,144.86,144.83,3.27690138]
[1768464191841,0.66401589,144.88,144.84,3.27690138]
[1768464192340,0.58392234,144.87,144.84,3.27690138]
[1768464193143,6.90226394,144.88,144.86,0.71552513]
[1768464193321,0.66401589,144.9,144.87,2.56137625]
[1768464193520,7.56560722,144.9,144.87,2.56137625]
[1768464194122,6.90159133,144.9,144.87,2.56137625]
[1768464194352,6.90159133,144.9,144.84,6.90398999]
[1768464194521,12.19951015,144.91,144.88,2.56137625]
[1768464194721,12.19951015,144.91,144.87,2.56137625]
[1768464195245,12.19951015,144.91,144.87,3.27690138]
[1768464195623,12.19951015,144.91,144.83,19.82232284]
[1768464195624,11.53549426,144.91,144.89,0.71552513]
[1768464195820,5.15562884,144.9,144.89,0.65552513]
[1768464196142,5.15562884,144.9,144.89,3.21690138]
[1768464196332,5.15562884,144.9,144.89,0.65552513]
[1768464196522,11.53549426,144.91,144.89,0.65552513]
[1768464197444,12.19951015,144.91,144.88,2.56137625]
[1768464198121,12.19951015,144.91,144.88,3.27690138]
[1768464201029,11.53549426,144.91,144.89,3.28545592]
[1768464202120,0.77635143,144.94,144.91,0.72407967]
[1768464202442,0.1,144.94,144.92,0.72407967]
[1768464202652,0.1,144.94,144.91,3.28545592]
[1768464202653,7.66035434,144.94,144.91,3.28545592]
[1768464205358,0.66103813,144.93,144.88,6.90210797]
[1768464205546,0.66103813,144.93,144.89,0.70579253]
[1768464205859,0.66103813,144.93,144.89,3.26716878]
[1768464207542,7.56136289,144.93,144.89,3.26716878]
[1768464208541,7.56144493,144.92,144.89,3.26716878]
[1768464209163,7.56144493,144.92,144.89,2.56137625]
[1768464209959,0.66103813,144.91,144.89,2.56137625]
[1768464210970,0.66103813,144.91,144.88,0.70579253]
[1768464211268,0.66103813,144.91,144.89,2.56137625]
[1768464211467,7.56187774,144.91,144.88,0.70579253]
[1768464211647,7.56187774,144.91,144.88,3.26716878]
[1768464213047,0.66103813,144.9,144.86,13.28579253]
[1768464213245,0.66103813,144.9,144.86,15.84716878]
[1768464214058,0.66103813,144.9,144.86,3.26716878]
[1768464214360,0.66103813,144.88,144.85,0.70579253]
[1768464214746,7.56351587,144.88,144.85,0.70579253]
[1768464216566,7.56351587,144.88,144.84,0.70579253]
[1768464216748,7.56351587,144.88,144.85,0.70579253]
[1768464219671,10.12489212,144.88,144.85,0.70579253]
[1768464219868,7.56400954,144.87,144.84,0.70579253]
[1768464220572,10.12538579,144.87,144.83,13.28579253]
[1768464221147,10.12538579,144.87,144.84,0.70579253]
[1768464221664,7.56400954,144.87,144.84,0.70579253]
[1768464222274,10.12538579,144.87,144.84,0.70579253]
[1768464225373,0.66103813,144.86,144.83,13.28579253]
[1768464225769,3.22241438,144.86,144.83,13.28579253]
[1768464226870,10.12569951,144.86,144.83,13.28579253]
[1768464227075,9.46466138,144.86,144.84,0.70579253]
[1768464228559,10.12569951,144.86,144.83,0.70579253]
[1768464229181,2.56137625,144.85,144.83,0.70579253]
[1768464229378,2.56137625,144.84,144.83,0.70579253]
[1768464229559,2.56137625,144.84,144.8,0.70579253]
[1768464231170,7.58020527,144.84,144.8,0.70579253]
[1768464231373,10.14158152,144.84,144.8,0.70579253]
[1768464232267,2.56137625,144.83,144.8,0.70579253]
[1768464233484,3.2225637,144.83,144.8,0.70579253]
[1768464233788,10.1772031,144.84,144.8,0.70579253]
[1768464235084,7.61582685,144.84,144.8,0.70579253]
[1768464235285,10.1772031,144.84,144.8,0.70579253]
[1768464235590,11.61927039,144.84,144.8,0.70579253]
[1768464237485,4.00344354,144.83,144.8,0.70579253]
[1768464239187,4.00344354,144.83,144.81,0.66879468]
[1768464241098,10.9083928,144.83,144.81,0.66879468]
[1768464241259,4.00344354,144.81,144.79,12.58]
[1768464241463,4.71503544,144.82,144.79,12.58]
[1768464241784,4.71503544,144.82,144.77,6.9070839]
[1768464242583,11.62020533,144.82,144.77,6.9070839]
[1768464242776,4.71503544,144.82,144.77,6.9070839]
[1768464242984,4.00344354,144.83,144.77,28.17929859]
[1768464243168,4.00344354,144.83,144.78,0.66879468]
[1768464244088,11.61972197,144.83,144.79,0.66879468]
[1768464245785,4.00344354,144.82,144.79,0.66879468]
[1768464246366,7.61627843,144.83,144.79,0.66879468]
[1768464246591,0.7115919,144.86,144.81,0.66879468]
[1768464246903,4.00344354,144.86,144.82,0.66879468]
[1768464247261,6.90226394,144.88,144.82,0.66879468]
[1768464247467,4.00344354,144.87,144.82,0.66879468]
[1768464247884,4.71503544,144.87,144.82,0.66879468]
[1768464248282,11.61785733,144.87,144.83,0.66879468]
[1768464253189,10.90589994,144.88,144.84,0.66879468]
[1768464253396,11.61749184,144.88,144.84,0.66879468]
[1768464254894,4.71503544,144.88,144.84,0.66879468]
[1768464255079,0.7115919,144.92,144.87,0.66879468]
[1768464255285,4.71503544,144.92,144.87,0.66879468]
[1768464257072,4.71503544,144.92,144.89,0.66879468]
[1768464257569,0.7115919,144.92,144.89,0.66879468]
[1768464259194,11.3335074,144.93,144.9,0.66879468]
[1768464259195,1.1415919,144.93,144.9,0.66879468]
[1768464259495,1.1415919,144.93,144.9,0.63879468]
[1768464259896,0.43,144.93,144.9,0.63879468]
[1768464260398,4.43344354,144.93,144.9,0.63879468]
[1768464261386,0.43,144.93,144.9,0.63879468]
[1768464261592,0.1,144.94,144.92,0.66883106]
[1768464261776,0.1,144.94,144.92,0.63883106]
[1768464263000,0.1,144.94,144.92,4.00344354]
[1768464263499,0.1,144.95,144.92,10.90369792]
[1768464263812,0.1,144.95,144.93,0.39736888]
[1768464264299,0.1,144.95,144.92,0.39736888]
[1768464265408,0.66319974,144.94,144.91,0.39736888]
[1768464265899,11.70965746,144.95,144.91,0.39736888]
[1768464267101,0.66318776,144.93,144.89,0.39736888]
[1768464267281,0.66318776,144.93,144.89,4.40081242]
[1768464267683,0.66318776,144.94,144.9,4.40081242]
[1768464267989,0.66318776,144.94,144.9,11.30208263]
[1768464269903,0.66318776,144.94,144.9,7.29863909]
[1768464270275,0.66318776,144.94,144.9,11.30208263]
[1768464271408,0.1,144.95,144.92,0.39736888]
[1768464271582,0.1,144.95,144.93,0.39736888]
[1768464272592,0.1,144.95,144.92,4.40081242]
[1768464274104,0.1,144.95,144.92,11.30104117]
[1768464274302,0.1,144.95,144.93,4.00344354]
[1768464274610,0.1,144.95,144.93,4.40081242]
[1768464274999,0.1,144.96,144.94,4.40081242]
[1768464275587,7.70224803,144.99,144.94,4.40081242]
[1768464275588,0.1,144.99,144.96,0.29736888]
[1768464275793,0.66318776,145.01,144.95,4.00344354]
[1768464275794,0.66318776,145.01,144.98,4.00344354]
[1768464276000,0.66318776,145.01,144.99,4.00344354]
[1768464276395,1.20018776,145.03,145.0,4.00344354]
[1768464276595,8.09535577,145.03,145.0,4.00344354]
[1768464276908,1.20018776,145.03,145.0,4.00344354]
[1768464277110,0.66318776,145.02,145.0,4.00344354]
[1768464277311,0.66318776,145.02,144.99,4.00344354]
[1768464278416,1.20018776,145.03,145.0,4.00344354]
[1768464281125,0.537,145.03,145.01,4.00344354]
[1768464281490,0.537,145.03,145.01,4.30081242]
[1768464281690,0.76318776,145.05,145.02,4.00344354]
[1768464282497,0.76318776,145.05,145.01,4.30081242]
[1768464282699,0.1,145.05,145.03,4.00344354]
[1768464282908,0.1,145.06,145.04,4.00344354]
[1768464283204,0.1,145.07,145.05,4.00344354]
[1768464283795,0.1,145.07,145.05,4.20081242]
[1768464284290,0.1,145.07,145.05,0.19736888]
[1768464284620,0.1,145.07,145.05,4.20081242]
[1768464285130,0.1,145.07,145.06,4.00344354]
[1768464286229,0.1,145.07,145.05,4.20081242]
[1768464287706,0.66318776,145.09,145.06,4.00344354]
[1768464287908,0.66318776,145.1,145.07,4.00344354]
[1768464288113,0.66318776,145.13,145.09,4.20081242]
[1768464288311,0.66318776,145.13,145.11,4.00344354]
[1768464288538,0.66318776,145.13,145.1,4.00344354]
[1768464288854,0.66318776,145.13,145.09,0.19736888]
[1768464289036,0.66318776,145.13,145.1,4.00344354]
[1768464289241,0.66318776,145.13,145.08,0.19736888]
[1768464289242,0.66318776,145.12,145.08,0.19736888]
[1768464289730,0.66318776,145.12,145.08,4.00344354]
[1768464290639,0.68029209,145.11,145.08,4.00344354]
[1768464292522,7.57171176,145.11,145.07,4.20081242]
[1768464292826,6.89141967,145.11,145.08,4.00344354]
[1768464293021,10.89381768,145.13,145.09,4.00344354]
[1768464293226,6.89037414,145.13,145.09,4.00344354]
[1768464293641,6.89037414,145.13,145.09,4.71577367]
[1768464293937,6.89037414,145.13,145.1,0.71233013]
[1768464295538,6.89037414,145.13,145.11,0.71233013]
[1768464295839,6.89037414,145.13,145.11,2.55141096]
[1768464296416,2.55141096,145.15,145.05,17.23467919]
[1768464296614,9.44131036,145.14,145.1,2.55141096]
[1768464296811,6.8898994,145.14,145.1,2.55141096]
[1768464297252,2.55141096,145.13,145.05,6.89417442]
[1768464297415,2.55141096,145.12,145.07,2.55141096]
[1768464297618,2.55141096,145.12,145.05,6.89417442]
[1768464297925,2.55141096,145.12,145.08,0.71233013]
[1768464298735,6.89132382,145.11,145.05,0.71233013]
[1768464298911,24.11963337,145.11,145.06,0.71233013]
[1768464299115,6.89132382,145.11,145.07,0.71233013]
[1768464299337,6.89132382,145.11,145.08,0.71233013]
[1768464301147,9.44273478,145.11,145.08,0.71233013]
[1768464301739,9.44273478,145.11,145.07,0.49942997]
[1768464301928,9.44273478,145.11,145.03,12.58]
[1768464301929,2.55141096,145.09,145.05,0.49942997]
[1768464302633,2.55141096,145.1,145.06,1.1425772]
[1768464302824,24.11963337,145.11,145.06,1.1425772]
[1768464302825,17.22830955,145.11,145.06,1.1425772]
[1768464303025,2.55141096,145.1,145.06,1.1425772]
[1768464303238,2.55141096,145.08,145.04,1.1425772]
[1768464303834,2.55141096,145.07,145.04,1.1425772]
[1768464304637,32.33972051,145.11,145.04,1.1425772]
[1768464304638,2.55141096,145.08,145.04,1.1425772]
[1768464304945,9.44385991,145.09,145.05,1.1425772]
[1768464305353,2.55141096,145.08,145.05,1.1425772]
[1768464307948,9.44423139,145.08,145.05,1.1425772]
[1768464308154,2.55141096,145.06,145.03,1.1425772]
[1768464308351,2.55141096,145.05,145.03,1.1425772]
[1768464309346,2.55141096,145.06,145.03,1.1425772]
[1768464310239,17.23187207,145.08,145.03,1.1425772]
[1768464310445,17.23187207,145.08,145.04,1.1425772]
[1768464310446,15.13141096,145.08,145.04,1.1425772]
[1768464311653,22.02425389,145.08,145.04,1.1425772]
[1768464312945,19.47284293,145.08,145.04,1.1425772]
[1768464313136,22.02425389,145.08,145.04,1.1425772]
[1768464314546,2.55141096,145.07,145.04,1.1425772]
[1768464316747,9.44425389,145.08,145.04,1.1425772]
[1768464317135,17.22762951,145.12,145.05,1.1425772]
[1768464317460,17.22762951,145.12,145.04,9.44605309]
[1768464317461,9.44273478,145.11,145.06,1.1425772]
[1768464317756,2.55141096,145.1,145.06,1.1425772]
[1768464317940,2.55141096,145.08,145.06,1.1425772]
[1768464318656,6.8926206,145.09,145.06,1.1425772]
[1768464318657,9.44403156,145.09,145.06,1.1425772]
[1768464319341,2.55141096,145.08,145.05,1.1425772]
[1768464320057,2.55141096,145.1,145.07,1.1425772]
[1768464320357,2.55141096,145.09,145.07,1.1425772]
[1768464320741,2.55141096,145.08,145.04,1.30352701]
[1768464321053,24.12308765,145.09,145.03,1.30352701]
[1768464321054,2.55141096,145.05,145.03,1.30352701]
[1768464321840,36.70308765,145.09,145.03,1.30352701]
[1768464322152,2.55141096,145.05,145.03,1.30352701]
[1768464323165,2.55141096,145.04,145.01,1.25214861]
[1768464323333,2.55141096,145.03,145.01,1.25214861]
[1768464323537,2.55141096,145.04,145.01,1.25214861]
[1768464325252,6.89440997,145.05,145.01,1.25214861]
[1768464325447,2.55141096,145.04,145.01,1.25214861]
[1768464326462,9.4460892,145.04,145.01,1.25214861]
[1768464328140,2.55141096,145.03,145.01,1.25214861]
[1768464328340,2.49141097,145.03,145.01,1.25214861]
[1768464328962,6.89467824,145.04,145.01,1.25214861]
[1768464329170,2.55141096,145.03,145.01,1.25214861]
[1768464329841,2.55141096,145.04,145.01,1.25214861]
[1768464330042,2.49141097,145.04,145.01,1.25214861]
[1768464330857,2.55141096,145.03,144.99,13.83214861]
[1768464331066,2.55141096,145.01,144.99,1.25214861]
[1768464331234,2.55141096,145.01,144.98,1.25214861]
[1768464331442,2.55141096,145.02,144.98,1.25214861]
[1768464332066,9.44705927,145.02,144.98,1.25214861]
[1768464332363,2.55141096,145.02,144.99,1.25214861]
[1768464332562,9.4467077,145.03,144.99,1.25214861]
[1768464333462,2.55141096,145.02,144.99,1.25214861]
[1768464334066,6.89607613,145.01,144.99,1.25214861]
[1768464334245,9.44748709,145.01,144.97,1.25214861]
[1768464334763,6.89607613,145.01,144.97,1.25214861]
[1768464334968,9.44748709,145.01,144.97,1.25214861]
[1768464335138,2.55141096,145.0,144.97,1.25214861]
[1768464336446,2.55141096,145.01,144.97,1.25214861]
[1768464337166,24.13379948,145.03,144.97,1.25214861]
[1768464337463,2.55141096,145.01,144.97,1.25214861]
[1768464338246,9.4465361,145.03,144.99,1.25214861]
[1768464340061,2.55141096,145.02,144.99,1.25214861]
[1768464340369,2.55141096,145.03,145.0,1.25214861]
[1768464340565,9.44654535,145.03,145.0,1.25214861]
[1768464340747,2.55141096,145.02,145.0,1.25214861]
[1768464340949,6.89513674,145.03,145.0,1.25214861]
[1768464341169,2.55141096,145.02,145.0,1.25214861]
[1768464342045,2.55141096,145.02,144.99,1.25214861]
[1768464343060,2.55141096,145.02,145.0,1.25214861]
[1768464343561,9.44607821,145.04,145.0,1.25214861]
[1768464345556,9.44571041,145.05,145.01,1.25214861]
[1768464345963,2.55141096,145.06,145.02,1.25214861]
[1768464346364,2.55141096,145.05,145.02,1.25214861]
[1768464347669,2.55141096,145.04,145.02,1.25214861]
[1768464347866,2.55141096,145.03,145.0,1.25214861]
[1768464348465,2.55141096,145.02,145.0,1.25214861]
[1768464352483,17.23543605,145.05,145.0,1.25214861]
[1768464352658,5.14512602,145.04,145.0,1.25214861]
[1768464352860,2.55141096,145.02,145.0,1.25214861]
[1768464353979,17.23543605,145.05,145.0,1.25214861]
[1768464354164,2.55141096,145.02,145.0,1.25214861]
[1768464355483,3.99322487,145.02,145.0,1.25214861]
[1768464356275,3.99322487,145.03,145.0,1.25214861]
[1768464357485,6.89504862,145.04,145.0,1.25214861]
[1768464357486,3.99322487,145.04,145.0,1.25214861]
[1768464358190,3.99322487,145.04,145.01,1.47474946]
[1768464362889,24.1264256,145.07,145.01,1.47474946]
[1768464363092,3.99322487,145.04,145.01,1.47474946]
[1768464364488,9.14700639,145.03,144.99,1.47474946]
[1768464364690,3.99322487,145.03,144.99,1.47474946]
[1768464364881,3.99322487,145.04,145.0,1.47474946]
[1768464365185,5.15378273,145.03,145.0,1.47474946]
[1768464365396,10.88803618,145.04,145.0,1.47474946]
[1768464365571,5.15657071,145.03,145.0,1.47474946]
[1768464365890,6.89481131,145.04,145.0,1.47474946]
[1768464366075,5.15657071,145.03,145.0,1.47474946]
[1768464366275,6.89481131,145.04,145.0,1.47474946]
[1768464366595,5.15770764,145.03,145.0,1.47474946]
[1768464366781,10.88803618,145.04,145.0,1.47474946]
[1768464366972,5.15770764,145.03,145.0,1.47474946]
[1768464367171,10.88803618,145.04,145.0,1.47474946]
[1768464367373,5.15770764,145.03,145.0,1.47474946]
[1768464367576,5.15905699,145.02,145.0,1.47474946]
[1768464367786,10.88803618,145.04,145.0,1.47474946]
[1768464368000,5.15905578,145.03,145.0,1.47474946]
[1768464368180,5.15905578,145.02,145.0,1.47474946]
[1768464368380,10.88803618,145.04,145.0,1.47474946]
[1768464368581,5.15939167,145.03,145.0,1.47474946]
[1768464368787,5.15939167,145.02,145.0,1.47474946]
[1768464368982,10.88803618,145.04,145.0,1.47474946]
[1768464369188,5.15939167,145.03,145.0,1.47474946]
[1768464369480,5.15939167,145.02,145.0,1.47474946]
[1768464369687,10.88803618,145.04,145.0,1.47474946]
[1768464370000,5.15971376,145.03,145.0,1.47474946]
[1768464370304,3.99322487,145.04,145.0,1.47474946]
[1768464370505,5.15960874,145.03,145.0,1.47474946]
[1768464370806,5.15960874,145.02,145.0,1.47474946]
[1768464370983,3.99322487,145.04,145.0,1.47474946]
[1768464371184,10.88803065,145.04,145.0,1.47474946]
[1768464372797,3.99322487,145.03,145.0,1.47474946]
[1768464373197,3.99322487,145.02,144.98,1.47474946]
[1768464374312,10.88878488,145.03,144.99,1.47474946]
[1768464376209,3.99322487,145.02,144.99,1.47474946]
[1768464378110,10.82882934,145.02,145.0,1.47474946]
[1768464378511,10.82882934,145.02,144.98,1.47474946]
[1768464379708,3.99322487,145.03,144.98,1.47474946]
[1768464383014,5.16186498,145.02,144.98,1.47474946]
[1768464383205,5.16186498,145.01,144.98,1.47474946]
[1768464383513,10.88873618,145.03,144.98,1.47474946]
[1768464383687,5.16213412,145.02,144.98,1.47474946]
[1768464383895,5.16213412,145.01,144.98,1.47474946]
[1768464384096,10.88873618,145.03,144.99,1.53606819]
[1768464384917,3.99322487,145.0,144.94,6.89901007]
[1768464385107,3.99322487,144.99,144.94,10.89223208]
[1768464385423,18.29428268,145.04,144.97,3.99322487]
[1768464385604,24.12961047,145.05,144.98,3.99322487]
[1768464385923,3.99322487,145.03,144.98,3.99322487]
[1768464386489,10.88882547,145.02,144.97,6.89780732]
[1768464386714,3.99322487,145.0,144.96,12.58]
[1768464386895,3.99322487,145.0,144.97,1.61091599]
[1768464387915,3.99322487,144.99,144.97,1.61091599]
[1768464388692,10.89056257,144.99,144.97,1.61091599]
[1768464393307,6.89638989,145.01,144.97,1.61091599]
[1768464393501,10.88961476,145.01,144.97,1.61091599]
[1768464393940,6.89638989,145.01,144.97,1.61091599]
[1768464394223,10.88961476,145.01,144.97,1.61091599]
[1768464395424,10.88984447,145.0,144.97,1.61091599]
[1768464396112,5.15535979,144.99,144.97,1.61091599]
[1768464396308,10.88984447,145.0,144.97,1.61091599]
[1768464396730,5.15485343,144.99,144.97,1.61091599]
[1768464397028,10.88984447,145.0,144.97,1.61091599]
[1768464397215,5.15485463,144.99,144.97,1.61091599]
[1768464397525,3.99322487,144.99,144.97,1.61091599]
[1768464397817,3.99322487,144.98,144.93,23.47282227]
[1768464398018,3.99322487,144.99,144.93,23.47282227]
[1768464398327,3.99322487,144.99,144.94,6.89936363]
[1768464398902,10.88984447,145.0,144.94,10.8925885]
[1768464399228,5.15396327,144.99,144.95,10.89213274]
[1768464399426,10.88984447,145.0,144.95,10.89213274]
[1768464399723,5.15347036,144.99,144.95,3.99322487]
[1768464400018,10.88984447,145.0,144.94,10.89243619]
[1768464400233,5.15347156,144.99,144.94,10.89243619]
[1768464400522,10.88984447,145.0,144.94,10.89243619]
[1768464400720,12.05010263,144.99,144.94,10.89243619]
[1768464400928,6.89707006,144.99,144.94,10.89243619]
[1768464403132,6.89669997,145.0,144.94,10.89243619]
[1768464403426,5.15228459,144.99,144.95,3.99322487]
[1768464403613,10.88992484,145.0,144.95,3.99322487]
[1768464403801,5.15229431,144.99,144.95,3.99322487]
[1768464403998,10.88992484,145.0,144.95,3.99322487]
[1768464404932,3.99322487,145.02,144.97,3.99322487]
[1768464405222,6.89579954,145.02,144.97,3.99322487]
[1768464405424,10.88850424,145.03,144.98,3.99322487]
[1768464405606,6.89527937,145.03,144.98,3.99322487]
[1768464405804,10.88850424,145.03,144.98,3.99322487]
[1768464406714,10.88850424,145.03,144.98,10.89072385]
[1768464407724,17.23557866,145.05,144.98,10.89072385]
[1768464407725,24.12975308,145.05,144.98,10.89072385]
[1768464407927,3.99322487,145.03,144.98,10.89072385]
[1768464408506,3.99322487,145.03,144.98,3.99322487]
[1768464408718,3.99322487,145.02,144.97,16.57322487]
[1768464409527,3.99322487,145.02,144.97,23.47110814]
[1768464409906,10.8888276,145.02,144.98,1.64053872]
[1768464411650,3.99322487,145.03,144.98,1.64053872]
[1768464413962,10.8890465,145.02,144.98,1.64053872]
[1768464414541,3.99322487,145.01,144.98,1.64053872]
[1768464416732,10.8893387,145.01,144.98,1.64053872]
[1768464417444,9.45240623,145.01,144.98,1.64053872]
[1768464418443,2.5562924,145.0,144.98,1.64053872]
[1768464418741,7.71204656,145.0,144.98,1.64053872]
[1768464418930,2.5562924,145.0,144.98,1.64053872]
[1768464423241,6.89649625,145.01,144.98,1.64053872]
[1768464423443,5.1570521,145.0,144.98,1.64053872]
[1768464423647,9.45278865,145.01,144.98,1.64053872]
[1768464423850,5.15705331,145.0,144.98,1.64053872]
[1768464424035,9.45278865,145.01,144.98,1.64053872]
[1768464424235,5.1570521,145.0,144.98,1.64053872]
[1768464424535,9.45278865,145.01,144.98,1.64053872]
[1768464424736,5.1573313,145.0,144.98,1.64053872]
[1768464424936,9.45278865,145.01,144.98,1.64053872]
[1768464425140,5.1573325,145.0,144.98,1.64053872]
[1768464425456,2.5562924,145.0,144.98,1.64053872]
[1768464426659,2.5562924,145.01,144.98,1.64053872]
[1768464426835,5.15799034,145.0,144.98,1.64053872]
[1768464427038,2.5562924,145.01,144.98,1.64053872]
[1768464427255,5.15799034,145.0,144.98,1.64053872]
[1768464427554,2.5562924,145.01,144.98,1.64053872]
[1768464427861,5.1583729,145.0,144.98,1.64053872]
[1768464428039,2.5562924,145.01,144.98,1.64053872]
[1768464428242,5.15837169,145.0,144.98,1.64053872]
[1768464428435,2.5562924,145.01,144.98,1.64053872]
[1768464428632,2.5562924,144.99,144.93,4.29989518]
[1768464428852,12.05555518,145.0,144.94,1.74360278]
[1768464428853,7.71507981,144.98,144.94,1.74360278]
[1768464429152,2.5562924,144.98,144.94,1.74360278]
[1768464429562,24.13814708,145.0,144.94,1.74360278]
[1768464429563,2.5562924,144.99,144.94,1.74360278]
[1768464429764,9.80288916,144.98,144.94,1.74360278]
[1768464430058,9.45378468,144.99,144.94,1.74360278]
[1768464430256,9.80246258,144.98,144.94,1.74360278]
[1768464430441,9.45378468,144.99,144.94,1.74360278]
[1768464430644,9.8019821,144.98,144.94,1.74360278]
[1768464430954,6.83758866,144.98,144.96,1.62562729]
[1768464431853,2.5562924,144.98,144.96,1.62562729]
[1768464432066,2.49629241,144.98,144.96,1.62562729]
[1768464433257,9.3940008,144.98,144.96,1.62562729]
[1768464433856,6.89770839,144.98,144.96,1.62562729]
[1768464434056,9.45400079,144.98,144.96,1.62562729]
[1768464436438,6.89770839,144.98,144.96,1.62562729]
[1768464436634,9.45400079,144.98,144.96,1.62562729]
[1768464438259,9.45400079,144.98,144.92,1.7345132]
[1768464438260,9.79764089,144.97,144.92,1.7345132]
[1768464438448,9.79764089,144.96,144.93,1.7345132]
[1768464438649,26.69775854,144.98,144.93,1.7345132]
[1768464438858,9.79813136,144.97,144.93,1.7345132]
[1768464439160,9.79813136,144.96,144.93,1.7345132]
[1768464439340,2.5562924,144.97,144.93,1.7345132]
[1768464439541,9.79529886,144.96,144.93,1.7345132]
[1768464439741,2.5562924,144.97,144.93,1.7345132]
[1768464439943,24.14146614,144.98,144.93,1.7345132]
[1768464439944,12.35159005,144.96,144.93,1.7345132]
[1768464440144,2.5562924,144.96,144.93,1.7345132]
[1768464440348,9.45508133,144.96,144.93,1.7345132]
[1768464443882,2.5562924,144.95,144.93,1.7345132]
[1768464444166,2.5562924,144.95,144.9,2.5562924]
[1768464444375,2.5562924,144.95,144.91,1.69147824]
[1768464446277,6.89894177,144.95,144.91,1.69147824]
[1768464447774,6.89863553,144.96,144.92,1.69147824]
[1768464448077,9.45492793,144.96,144.92,1.69147824]
[1768464449469,9.45446087,144.97,144.93,1.69147824]
[1768464449672,9.45446087,144.97,144.94,1.69147824]
[1768464449673,6.89816847,144.97,144.94,1.69147824]
[1768464449981,6.89655172,145.0,144.96,1.69147824]
[1768464450156,9.77113916,144.99,144.96,1.69147824]
[1768464450359,19.79702734,145.01,144.96,1.69147824]
[1768464450559,9.77122771,145.0,144.97,1.69147824]
[1768464450757,19.79702734,145.01,144.97,1.69147824]
[1768464451070,4.62837732,145.0,144.97,1.69147824]
[1768464452261,6.89702738,144.99,144.97,1.69147824]
[1768464452457,6.89672698,145.0,144.97,1.69147824]
[1768464454484,2.5562924,144.99,144.93,1.69147824]
[1768464454672,2.5562924,144.99,144.95,1.69147824]
[1768464455067,9.45301938,145.0,144.96,1.69147824]
[1768464455472,2.5562924,144.99,144.96,1.69147824]
[1768464456686,6.8975031,144.98,144.96,1.69147824]
[1768464458186,29.81985306,145.02,144.96,1.69147824]
[1768464458390,16.67633872,145.01,144.97,1.69147824]
[1768464458570,7.99388072,145.0,144.97,2.5562924]
[1768464458891,6.89571489,145.02,144.98,2.5562924]
[1768464459069,8.6701928,145.02,144.99,1.69147824]
[1768464459270,11.2264852,145.02,144.99,1.66147824]
[1768464459671,4.63236734,145.01,144.99,1.66147824]
[1768464459872,11.2264852,145.02,144.99,1.66147824]
[1768464460577,4.63250148,145.01,144.99,1.66147824]
[1768464460885,11.2264852,145.02,144.99,1.66147824]
[1768464461393,8.6701928,145.02,144.99,1.66147824]
[1768464461567,11.2264852,145.02,144.99,1.66147824]
[1768464463597,11.2264852,145.02,144.99,1.63147824]